[Event "Late-Titled-Tuesday-Blitz-November-28-2023"]
[Site "Chess.com"]
[Date "2023.11.28"]
[Round "3"]
[White "JuniorJumper"]
[Black "Dr_crypt"]
[Result "1/2-1/2"]
[WhiteElo "2544"]
[BlackElo "2372"]
[TimeControl "180+1"]
[EndTime "14:29:16 PST"]
[Termination "Game drawn by stalemate"]

1. g3 {[%clk 0:03:00.9]} 1... d5 {[%clk 0:02:56.2]} 2. Bg2 {[%clk 0:03:01.3]}
2... Nf6 {[%clk 0:02:55.7]} 3. b3 {[%clk 0:03:01.3]} 3... b6 {[%clk 0:02:55]} 4.
Bb2 {[%clk 0:03:01.1]} 4... Bb7 {[%clk 0:02:54.7]} 5. d3 {[%clk 0:03:01.7]} 5...
e6 {[%clk 0:02:54.6]} 6. Nd2 {[%clk 0:03:02]} 6... Be7 {[%clk 0:02:53.1]} 7.
Ngf3 {[%clk 0:03:00.5]} 7... O-O {[%clk 0:02:53.2]} 8. O-O {[%clk 0:03:01.2]}
8... c5 {[%clk 0:02:49]} 9. e4 {[%clk 0:02:56.8]} 9... dxe4 {[%clk 0:02:48.7]}
10. Ng5 {[%clk 0:02:57.1]} 10... Nbd7 {[%clk 0:02:45.3]} 11. Ngxe4 {[%clk
0:02:55.4]} 11... Nxe4 {[%clk 0:02:45.1]} 12. Nxe4 {[%clk 0:02:56.3]} 12... Qc8
{[%clk 0:02:29.2]} 13. Qg4 {[%clk 0:02:48.2]} 13... e5 {[%clk 0:02:16.2]} 14.
Qf3 {[%clk 0:01:49.8]} 14... Rb8 {[%clk 0:02:10.5]} 15. g4 {[%clk 0:01:43.2]}
15... Qc7 {[%clk 0:01:44.2]} 16. Rae1 {[%clk 0:01:36]} 16... f6 {[%clk
0:01:37.1]} 17. Qe2 {[%clk 0:01:27.5]} 17... Rfe8 {[%clk 0:01:35.5]} 18. Ng3
{[%clk 0:01:27.6]} 18... Bxg2 {[%clk 0:01:31.7]} 19. Kxg2 {[%clk 0:01:28.5]}
19... Nf8 {[%clk 0:01:31.3]} 20. Qe4 {[%clk 0:01:23.3]} 20... Ne6 {[%clk
0:01:26.4]} 21. Bc1 {[%clk 0:01:11.7]} 21... Qd7 {[%clk 0:01:25.1]} 22. f4
{[%clk 0:01:00.6]} 22... Nxf4+ {[%clk 0:01:21.2]} 23. Bxf4 {[%clk 0:01:00.3]}
23... exf4 {[%clk 0:01:21.4]} 24. Nf5 {[%clk 0:00:53.3]} 24... Bf8 {[%clk
0:01:19]} 25. Qxf4 {[%clk 0:00:49]} 25... Qd5+ {[%clk 0:01:16.1]} 26. Qf3 {[%clk
0:00:45.8]} 26... Qxf3+ {[%clk 0:01:14.7]} 27. Kxf3 {[%clk 0:00:46.7]} 27... g6
{[%clk 0:01:13.6]} 28. Ng3 {[%clk 0:00:40.4]} 28... Bd6 {[%clk 0:01:01.9]} 29.
Ne4 {[%clk 0:00:39.7]} 29... Be5 {[%clk 0:01:00.5]} 30. h4 {[%clk 0:00:37.6]}
30... Kg7 {[%clk 0:00:59.6]} 31. Kg2 {[%clk 0:00:37.5]} 31... Rbd8 {[%clk
0:00:53.8]} 32. Re2 {[%clk 0:00:27.5]} 32... Bd4 {[%clk 0:00:50.5]} 33. Rfe1
{[%clk 0:00:25.1]} 33... Re6 {[%clk 0:00:28.4]} 34. Nd2 {[%clk 0:00:23.7]} 34...
Rxe2+ {[%clk 0:00:27.2]} 35. Rxe2 {[%clk 0:00:24.6]} 35... Kf7 {[%clk
0:00:27.9]} 36. Nc4 {[%clk 0:00:24.3]} 36... b5 {[%clk 0:00:21.6]} 37. Nd2
{[%clk 0:00:19.8]} 37... f5 {[%clk 0:00:19.4]} 38. gxf5 {[%clk 0:00:17.6]} 38...
gxf5 {[%clk 0:00:20.3]} 39. Nf3 {[%clk 0:00:17.5]} 39... h6 {[%clk 0:00:16.5]}
40. Nxd4 {[%clk 0:00:11.7]} 40... Rxd4 {[%clk 0:00:16.2]} 41. Re5 {[%clk
0:00:12.2]} 41... Kg6 {[%clk 0:00:09.8]} 42. Rxc5 {[%clk 0:00:08.9]} 42... Rxh4
{[%clk 0:00:10.2]} 43. Rxb5 {[%clk 0:00:09.6]} 43... Rg4+ {[%clk 0:00:09.4]} 44.
Kh2 {[%clk 0:00:09.3]} 44... Kg5 {[%clk 0:00:07.3]} 45. Rb7 {[%clk 0:00:07.6]}
45... h5 {[%clk 0:00:06.8]} 46. c4 {[%clk 0:00:04.3]} 46... Kf4 {[%clk
0:00:06.3]} 47. c5 {[%clk 0:00:02.9]} 47... Ke3 {[%clk 0:00:06.2]} 48. c6 {[%clk
0:00:02.5]} 48... Rg6 {[%clk 0:00:04.8]} 49. Rf7 {[%clk 0:00:01.9]} 49... f4
{[%clk 0:00:01.8]} 50. c7 {[%clk 0:00:01.9]} 50... Rc6 {[%clk 0:00:02.4]} 51. d4
{[%clk 0:00:02.2]} 51... f3 {[%clk 0:00:02.5]} 52. d5 {[%clk 0:00:02.5]} 52...
Rc2+ {[%clk 0:00:02.6]} 53. Kg3 {[%clk 0:00:03.2]} 53... f2 {[%clk 0:00:02.7]}
54. Rf3+ {[%clk 0:00:04]} 54... Ke4 {[%clk 0:00:02.8]} 55. Rxf2 {[%clk
0:00:04.7]} 55... Rxc7 {[%clk 0:00:02.6]} 56. Rd2 {[%clk 0:00:05.5]} 56... Rd7
{[%clk 0:00:02.9]} 57. d6 {[%clk 0:00:06.1]} 57... Ke5 {[%clk 0:00:03.2]} 58.
Kh4 {[%clk 0:00:06.7]} 58... Rxd6 {[%clk 0:00:04.1]} 59. Re2+ {[%clk 0:00:07.3]}
59... Kd4 {[%clk 0:00:05]} 60. Kxh5 {[%clk 0:00:07.7]} 60... Kc3 {[%clk
0:00:05.4]} 61. Kg4 {[%clk 0:00:07]} 61... Rd2 {[%clk 0:00:05.9]} 62. Rxd2
{[%clk 0:00:04]} 62... Kxd2 {[%clk 0:00:06.2]} 63. b4 {[%clk 0:00:03.3]} 63...
Kc3 {[%clk 0:00:06.6]} 64. b5 {[%clk 0:00:03.5]} 64... Kb4 {[%clk 0:00:06.9]}
65. b6 {[%clk 0:00:03.5]} 65... axb6 {[%clk 0:00:07.4]} 66. Kf3 {[%clk
0:00:04.3]} 66... Ka3 {[%clk 0:00:08.2]} 67. Ke2 {[%clk 0:00:05.2]} 67... Kxa2
{[%clk 0:00:08.8]} 68. Kd1 {[%clk 0:00:06.1]} 68... b5 {[%clk 0:00:09.3]} 69.
Kc2 {[%clk 0:00:05.6]} 69... b4 {[%clk 0:00:10.2]} 70. Kd3 {[%clk 0:00:03.7]}
70... b3 {[%clk 0:00:11.1]} 71. Kc3 {[%clk 0:00:04.5]} 71... b2 {[%clk 0:00:12]}
72. Kd2 {[%clk 0:00:05.1]} 72... b1=Q {[%clk 0:00:12.9]} 73. Kc3 {[%clk
0:00:06]} 73... Qb2+ {[%clk 0:00:13.2]} 74. Kd3 {[%clk 0:00:06.3]} 74... Kb3
{[%clk 0:00:13.9]} 75. Ke4 {[%clk 0:00:07.2]} 75... Qd2 {[%clk 0:00:14.2]} 76.
Kf3 {[%clk 0:00:08.1]} 76... Kc4 {[%clk 0:00:15.1]} 77. Kg4 {[%clk 0:00:09]}
77... Qf2 {[%clk 0:00:15.2]} 78. Kh3 {[%clk 0:00:09.9]} 78... Kd4 {[%clk
0:00:16.1]} 79. Kg4 {[%clk 0:00:10.6]} 79... Ke5 {[%clk 0:00:16.7]} 80. Kh3
{[%clk 0:00:11.5]} 80... Kf4 {[%clk 0:00:17]} 1/2-1/2

[Event "Late-Titled-Tuesday-Blitz-November-28-2023"]
[Site "Chess.com"]
[Date "2023.11.28"]
[Round "3"]
[White "krzyzan94"]
[Black "HajiyevKanan"]
[Result "1-0"]
[WhiteElo "2749"]
[BlackElo "2510"]
[TimeControl "180+1"]
[EndTime "14:29:24 PST"]
[Termination "krzyzan94 won by checkmate"]

1. e4 {[%clk 0:03:00.9]} 1... c6 {[%clk 0:03:00.1]} 2. d4 {[%clk 0:03:00.3]}
2... d5 {[%clk 0:03:01]} 3. e5 {[%clk 0:03:00.6]} 3... a6 {[%clk 0:03:01.3]} 4.
h4 {[%clk 0:02:57.9]} 4... h5 {[%clk 0:02:59.8]} 5. Bd3 {[%clk 0:02:57.1]} 5...
c5 {[%clk 0:02:59.1]} 6. c3 {[%clk 0:02:53.6]} 6... Nc6 {[%clk 0:02:58.4]} 7.
Ne2 {[%clk 0:02:48.1]} 7... cxd4 {[%clk 0:02:51.7]} 8. cxd4 {[%clk 0:02:47.9]}
8... Qb6 {[%clk 0:02:52.4]} 9. Nbc3 {[%clk 0:02:42.2]} 9... e6 {[%clk
0:02:47.4]} 10. O-O {[%clk 0:02:41.8]} 10... Bd7 {[%clk 0:02:42.7]} 11. Be3
{[%clk 0:02:37.5]} 11... Nh6 {[%clk 0:02:41.1]} 12. Rc1 {[%clk 0:02:26.3]} 12...
Ng4 {[%clk 0:02:36.1]} 13. Na4 {[%clk 0:02:25.9]} 13... Qa7 {[%clk 0:02:35.4]}
14. b3 {[%clk 0:02:12.6]} 14... Ba3 {[%clk 0:02:31.9]} 15. Rc2 {[%clk
0:02:04.5]} 15... Nb4 {[%clk 0:02:09.4]} 16. Rc7 {[%clk 0:02:02.8]} 16... Bxa4
{[%clk 0:02:01.4]} 17. bxa4 {[%clk 0:02:01.9]} 17... Qb6 {[%clk 0:01:48.2]} 18.
Rc3 {[%clk 0:01:56.2]} 18... Nxd3 {[%clk 0:01:41.3]} 19. Qxd3 {[%clk 0:01:38.4]}
19... Be7 {[%clk 0:01:30.7]} 20. Rb1 {[%clk 0:01:37.1]} 20... Qd8 {[%clk
0:01:18.5]} 21. Rxb7 {[%clk 0:01:30.2]} 21... O-O {[%clk 0:01:18.7]} 22. Rcc7
{[%clk 0:01:17.3]} 22... Bxh4 {[%clk 0:01:15.8]} 23. Nf4 {[%clk 0:01:00.2]}
23... Nxe3 {[%clk 0:01:14]} 24. fxe3 {[%clk 0:00:36.6]} 24... Qg5 {[%clk
0:01:06.5]} 25. Qg6 {[%clk 0:00:20.5]} 25... Qxg6 {[%clk 0:00:05.2]} 26. Nxg6
{[%clk 0:00:20.1]} 26... Bg5 {[%clk 0:00:04.2]} 27. Nxf8 {[%clk 0:00:17.2]}
27... Bxe3+ {[%clk 0:00:04.2]} 28. Kf1 {[%clk 0:00:16.6]} 28... Rxf8 {[%clk
0:00:05.1]} 29. Rb4 {[%clk 0:00:13]} 29... a5 {[%clk 0:00:05.2]} 30. Rb5 {[%clk
0:00:11.7]} 30... Bxd4 {[%clk 0:00:05.8]} 31. Rxa5 {[%clk 0:00:11.6]} 31... Bxe5
{[%clk 0:00:06.5]} 32. Rc6 {[%clk 0:00:10.3]} 32... Rb8 {[%clk 0:00:06.4]} 33.
Rb5 {[%clk 0:00:10.6]} 33... Ra8 {[%clk 0:00:06.9]} 34. a5 {[%clk 0:00:11.2]}
34... f6 {[%clk 0:00:06.2]} 35. a6 {[%clk 0:00:11.7]} 35... Kf7 {[%clk
0:00:06.7]} 36. Rb7+ {[%clk 0:00:11.9]} 36... Kg6 {[%clk 0:00:07.1]} 37. a7
{[%clk 0:00:09]} 37... Bd4 {[%clk 0:00:07.2]} 38. Rcc7 {[%clk 0:00:08.4]} 38...
e5 {[%clk 0:00:07.8]} 39. Rxg7+ {[%clk 0:00:08.4]} 39... Kf5 {[%clk 0:00:07.9]}
40. Rh7 {[%clk 0:00:08.2]} 40... Ke4 {[%clk 0:00:07.1]} 41. Ke2 {[%clk
0:00:06.9]} 41... f5 {[%clk 0:00:07.6]} 42. a4 {[%clk 0:00:06.1]} 42... f4
{[%clk 0:00:08.2]} 43. a5 {[%clk 0:00:06]} 43... Be3 {[%clk 0:00:08.9]} 44. Rhd7
{[%clk 0:00:02.8]} 44... h4 {[%clk 0:00:08.9]} 45. a6 {[%clk 0:00:02.6]} 45...
Bd4 {[%clk 0:00:09.4]} 46. Rbc7 {[%clk 0:00:02.7]} 46... Be3 {[%clk 0:00:09.4]}
47. Rb7 {[%clk 0:00:03.2]} 47... Bd4 {[%clk 0:00:09.6]} 48. Rh7 {[%clk
0:00:02.8]} 48... Be3 {[%clk 0:00:09]} 49. Rhg7 {[%clk 0:00:02.2]} 49... Bd4
{[%clk 0:00:08.9]} 50. Rgd7 {[%clk 0:00:02.3]} 50... Be3 {[%clk 0:00:09.1]} 51.
Rb5 {[%clk 0:00:02.4]} 51... Rxa7 {[%clk 0:00:07.6]} 52. Rb4+ {[%clk 0:00:02.8]}
52... Kf5 {[%clk 0:00:05.3]} 53. Rxa7 {[%clk 0:00:03.1]} 53... Bxa7 {[%clk
0:00:05.5]} 54. Rb7 {[%clk 0:00:04]} 54... Be3 {[%clk 0:00:05]} 55. a7 {[%clk
0:00:04.5]} 55... Bxa7 {[%clk 0:00:05.2]} 56. Rxa7 {[%clk 0:00:05.4]} 56... Kg4
{[%clk 0:00:05.7]} 57. Rg7+ {[%clk 0:00:05.2]} 57... Kf5 {[%clk 0:00:05.6]} 58.
Rh7 {[%clk 0:00:04.3]} 58... Kg5 {[%clk 0:00:05.7]} 59. Kf3 {[%clk 0:00:04.3]}
59... e4+ {[%clk 0:00:05.4]} 60. Kf2 {[%clk 0:00:04.9]} 60... d4 {[%clk
0:00:05.3]} 61. Rg7+ {[%clk 0:00:04.4]} 61... Kf5 {[%clk 0:00:05.4]} 62. Rg8
{[%clk 0:00:02.9]} 62... d3 {[%clk 0:00:05.6]} 63. Rd8 {[%clk 0:00:02.4]} 63...
Ke5 {[%clk 0:00:03.2]} 64. Rd7 {[%clk 0:00:02.8]} 64... e3+ {[%clk 0:00:02.3]}
65. Kf3 {[%clk 0:00:02.8]} 65... d2 {[%clk 0:00:03.2]} 66. Ke2 {[%clk
0:00:02.3]} 66... Ke4 {[%clk 0:00:03.4]} 67. Rf7 {[%clk 0:00:02.5]} 67... Ke5
{[%clk 0:00:03.8]} 68. Rh7 {[%clk 0:00:02.3]} 68... Ke4 {[%clk 0:00:04.4]} 69.
Rxh4 {[%clk 0:00:03]} 69... Kf5 {[%clk 0:00:04.8]} 70. Rh3 {[%clk 0:00:02.7]}
70... Kg4 {[%clk 0:00:05.4]} 71. Rf3 {[%clk 0:00:03]} 71... Kg5 {[%clk
0:00:06.1]} 72. g3 {[%clk 0:00:03.4]} 72... fxg3 {[%clk 0:00:06.4]} 73. Rxg3+
{[%clk 0:00:03.5]} 73... Kf4 {[%clk 0:00:06.8]} 74. Rf3+ {[%clk 0:00:04.1]}
74... Kg4 {[%clk 0:00:06.4]} 75. Rxe3 {[%clk 0:00:04.7]} 75... Kf4 {[%clk
0:00:06.9]} 76. Kxd2 {[%clk 0:00:04.8]} 76... Kf5 {[%clk 0:00:06.6]} 77. Kd3
{[%clk 0:00:05.2]} 77... Kf4 {[%clk 0:00:07.5]} 78. Re4+ {[%clk 0:00:05.1]}
78... Kf5 {[%clk 0:00:08.4]} 79. Kd4 {[%clk 0:00:05]} 79... Kf6 {[%clk
0:00:09.3]} 80. Re5 {[%clk 0:00:05.7]} 80... Kf7 {[%clk 0:00:10.2]} 81. Kd5
{[%clk 0:00:06.3]} 81... Kf6 {[%clk 0:00:11.1]} 82. Re1 {[%clk 0:00:05.5]} 82...
Kf5 {[%clk 0:00:11.6]} 83. Rf1+ {[%clk 0:00:05.9]} 83... Kg4 {[%clk 0:00:12.2]}
84. Ke4 {[%clk 0:00:06.3]} 84... Kg3 {[%clk 0:00:13.1]} 85. Rf8 {[%clk
0:00:05.5]} 85... Kg2 {[%clk 0:00:14]} 86. Rf3 {[%clk 0:00:05.4]} 86... Kh2
{[%clk 0:00:14.1]} 87. Ke3 {[%clk 0:00:04.9]} 87... Kg2 {[%clk 0:00:15]} 88. Rf7
{[%clk 0:00:04.6]} 88... Kg1 {[%clk 0:00:15.9]} 89. Ke2 {[%clk 0:00:04.5]} 89...
Kg2 {[%clk 0:00:16.8]} 90. Rg7+ {[%clk 0:00:04.9]} 90... Kh3 {[%clk 0:00:17.6]}
91. Kf3 {[%clk 0:00:05.2]} 91... Kh4 {[%clk 0:00:18.5]} 92. Rg1 {[%clk
0:00:05.2]} 92... Kh5 {[%clk 0:00:19.4]} 93. Kf4 {[%clk 0:00:05.7]} 93... Kh6
{[%clk 0:00:20.3]} 94. Kf5 {[%clk 0:00:06.3]} 94... Kh7 {[%clk 0:00:21.2]} 95.
Kf6 {[%clk 0:00:06.8]} 95... Kh8 {[%clk 0:00:22.1]} 96. Kf7 {[%clk 0:00:06.9]}
96... Kh7 {[%clk 0:00:23]} 97. Rh1# {[%clk 0:00:07.4]} 1-0

[Event "Late-Titled-Tuesday-Blitz-November-28-2023"]
[Site "Chess.com"]
[Date "2023.11.28"]
[Round "3"]
[White "kingofthenil"]
[Black "GMForgacs"]
[Result "1/2-1/2"]
[WhiteElo "2703"]
[BlackElo "2461"]
[TimeControl "180+1"]
[EndTime "14:29:41 PST"]
[Termination "Game drawn by 50-move rule"]

1. e4 {[%clk 0:02:58.6]} 1... e5 {[%clk 0:03:00.3]} 2. d4 {[%clk 0:02:57.9]}
2... exd4 {[%clk 0:03:00.5]} 3. c3 {[%clk 0:02:58]} 3... d5 {[%clk 0:03:00.7]}
4. exd5 {[%clk 0:02:57.1]} 4... Qxd5 {[%clk 0:03:01.6]} 5. cxd4 {[%clk
0:02:57.2]} 5... Nc6 {[%clk 0:02:55]} 6. Be3 {[%clk 0:02:40.8]} 6... Nf6 {[%clk
0:02:51.8]} 7. Nc3 {[%clk 0:02:41.7]} 7... Bb4 {[%clk 0:02:51]} 8. Ne2 {[%clk
0:02:41.6]} 8... Bf5 {[%clk 0:02:45.4]} 9. a3 {[%clk 0:02:22.3]} 9... Bxc3+
{[%clk 0:02:39.7]} 10. Nxc3 {[%clk 0:02:22.8]} 10... Qd7 {[%clk 0:02:38.9]} 11.
d5 {[%clk 0:02:22.3]} 11... Ne7 {[%clk 0:02:32.2]} 12. Bb5 {[%clk 0:02:11.5]}
12... c6 {[%clk 0:02:30]} 13. dxc6 {[%clk 0:02:12.4]} 13... Nxc6 {[%clk
0:02:23.5]} 14. O-O {[%clk 0:02:05.7]} 14... O-O {[%clk 0:02:20.6]} 15. Qxd7
{[%clk 0:01:45.4]} 15... Bxd7 {[%clk 0:02:13]} 16. h3 {[%clk 0:01:40.3]} 16...
a6 {[%clk 0:02:12.9]} 17. Be2 {[%clk 0:01:39.5]} 17... Rfe8 {[%clk 0:02:12]} 18.
Rfd1 {[%clk 0:01:38.8]} 18... Be6 {[%clk 0:02:07.2]} 19. b4 {[%clk 0:01:22.9]}
19... Ne5 {[%clk 0:02:02.3]} 20. Rd4 {[%clk 0:01:18.1]} 20... Rac8 {[%clk
0:01:59.7]} 21. Na4 {[%clk 0:01:18.1]} 21... Nc6 {[%clk 0:01:52.3]} 22. Rh4
{[%clk 0:01:07.4]} 22... Nd5 {[%clk 0:01:46.6]} 23. Bc5 {[%clk 0:01:04.9]} 23...
Bxh3 {[%clk 0:01:39.6]} 24. Bd3 {[%clk 0:01:05.2]} 24... Be6 {[%clk 0:01:08.8]}
25. Bxh7+ {[%clk 0:01:01.7]} 25... Kh8 {[%clk 0:01:09.2]} 26. Rd1 {[%clk
0:00:40.7]} 26... Nf6 {[%clk 0:01:08.7]} 27. Bc2+ {[%clk 0:00:16.3]} 27... Kg8
{[%clk 0:01:08.9]} 28. Nb6 {[%clk 0:00:10.5]} 28... Rcd8 {[%clk 0:01:09.1]} 29.
f3 {[%clk 0:00:04.3]} 29... Rxd1+ {[%clk 0:01:08.6]} 30. Bxd1 {[%clk 0:00:05.2]}
30... Rd8 {[%clk 0:01:08.4]} 31. Be2 {[%clk 0:00:05]} 31... a5 {[%clk
0:01:05.6]} 32. b5 {[%clk 0:00:04.2]} 32... Ne5 {[%clk 0:01:05.7]} 33. Rd4
{[%clk 0:00:03.7]} 33... Rxd4 {[%clk 0:00:58.9]} 34. Bxd4 {[%clk 0:00:04.6]}
34... Nfd7 {[%clk 0:00:57.9]} 35. Nxd7 {[%clk 0:00:03.7]} 35... Nxd7 {[%clk
0:00:58.8]} 36. Kf2 {[%clk 0:00:02.6]} 36... Kf8 {[%clk 0:00:58.5]} 37. Ke3
{[%clk 0:00:02.5]} 37... Ke7 {[%clk 0:00:59.2]} 38. Bxg7 {[%clk 0:00:02.4]}
38... f6 {[%clk 0:00:58.9]} 39. Bh6 {[%clk 0:00:02.6]} 39... Kd6 {[%clk
0:00:57]} 40. g4 {[%clk 0:00:02.8]} 40... Kc5 {[%clk 0:00:54.8]} 41. f4 {[%clk
0:00:02.9]} 41... Nb6 {[%clk 0:00:46.4]} 42. Bg7 {[%clk 0:00:02.6]} 42... Bd7
{[%clk 0:00:43.6]} 43. Kf3 {[%clk 0:00:01.9]} 43... Nd5 {[%clk 0:00:33.7]} 44.
a4 {[%clk 0:00:02.1]} 44... Nc3 {[%clk 0:00:26.6]} 45. Bxf6 {[%clk 0:00:01.6]}
45... Nxe2 {[%clk 0:00:25.9]} 46. Kxe2 {[%clk 0:00:02.5]} 46... Bxg4+ {[%clk
0:00:26.4]} 47. Kd2 {[%clk 0:00:02.7]} 47... Kb4 {[%clk 0:00:22.6]} 48. b6
{[%clk 0:00:01.8]} 48... Kxa4 {[%clk 0:00:21.2]} 49. Kc3 {[%clk 0:00:02.7]}
49... Kb5 {[%clk 0:00:20.9]} 50. Bd4 {[%clk 0:00:03.6]} 50... Bf5 {[%clk
0:00:20]} 51. Be3 {[%clk 0:00:04.5]} 51... a4 {[%clk 0:00:20.2]} 52. Bf2 {[%clk
0:00:04.6]} 52... Kc6 {[%clk 0:00:18.4]} 53. Kb4 {[%clk 0:00:05]} 53... Bc2
{[%clk 0:00:17]} 54. Be1 {[%clk 0:00:04.3]} 54... Kd5 {[%clk 0:00:16.7]} 55. Bd2
{[%clk 0:00:03.5]} 55... Kc6 {[%clk 0:00:16.7]} 56. Be3 {[%clk 0:00:03.8]} 56...
Kd5 {[%clk 0:00:17.1]} 57. Kc3 {[%clk 0:00:04.7]} 57... Bb3 {[%clk 0:00:16.8]}
58. Bd4 {[%clk 0:00:03.8]} 58... Ke4 {[%clk 0:00:16.4]} 59. Be5 {[%clk
0:00:04.2]} 59... Kf5 {[%clk 0:00:16.2]} 60. Kb4 {[%clk 0:00:04.6]} 60... Bd1
{[%clk 0:00:15.8]} 61. Bc7 {[%clk 0:00:03.2]} 61... Bc2 {[%clk 0:00:15.3]} 62.
Kc3 {[%clk 0:00:03.6]} 62... Bd1 {[%clk 0:00:15.3]} 63. Kd2 {[%clk 0:00:04]}
63... Bf3 {[%clk 0:00:15]} 64. Kc3 {[%clk 0:00:02.8]} 64... Bc6 {[%clk
0:00:15.7]} 65. Kb4 {[%clk 0:00:02.3]} 65... Ke4 {[%clk 0:00:16.6]} 66. Be5
{[%clk 0:00:02.2]} 66... Kd5 {[%clk 0:00:16.6]} 67. Bc7 {[%clk 0:00:01.9]} 67...
Ke6 {[%clk 0:00:16.1]} 68. Ka3 {[%clk 0:00:01.5]} 68... Kd5 {[%clk 0:00:15.7]}
69. Be5 {[%clk 0:00:01.4]} 69... Kc4 {[%clk 0:00:15.6]} 70. Bc7 {[%clk 0:00:02]}
70... Bd7 {[%clk 0:00:14.5]} 71. f5 {[%clk 0:00:02.1]} 71... Bxf5 {[%clk
0:00:14]} 72. Kxa4 {[%clk 0:00:02.3]} 72... Bd7+ {[%clk 0:00:14.6]} 73. Ka5
{[%clk 0:00:02.1]} 73... Kc5 {[%clk 0:00:14.5]} 74. Bf4 {[%clk 0:00:01.4]} 74...
Kc6 {[%clk 0:00:13.9]} 75. Be3 {[%clk 0:00:01.3]} 75... Be6 {[%clk 0:00:14.5]}
76. Bf2 {[%clk 0:00:01.3]} 76... Bc4 {[%clk 0:00:15.1]} 77. Kb4 {[%clk
0:00:02.1]} 77... Bf1 {[%clk 0:00:15.9]} 78. Kc3 {[%clk 0:00:01.4]} 78... Bg2
{[%clk 0:00:16]} 79. Kd2 {[%clk 0:00:01.4]} 79... Bh1 {[%clk 0:00:15.8]} 80. Kd3
{[%clk 0:00:01.7]} 80... Bd5 {[%clk 0:00:16.7]} 81. Kc3 {[%clk 0:00:01.8]} 81...
Be6 {[%clk 0:00:17]} 82. Be3 {[%clk 0:00:01.3]} 82... Bd5 {[%clk 0:00:17.5]} 83.
Kd2 {[%clk 0:00:01.9]} 83... Kb5 {[%clk 0:00:17.6]} 84. Ke2 {[%clk 0:00:02.4]}
84... Bc6 {[%clk 0:00:17.8]} 85. Kf2 {[%clk 0:00:02.9]} 85... Kc4 {[%clk
0:00:18.2]} 86. Kg3 {[%clk 0:00:03.5]} 86... Kd3 {[%clk 0:00:18.7]} 87. Bg1
{[%clk 0:00:03.6]} 87... Ke2 {[%clk 0:00:19.1]} 88. Kf4 {[%clk 0:00:04.1]} 88...
Kf1 {[%clk 0:00:19.3]} 89. Bc5 {[%clk 0:00:04.7]} 89... Ke2 {[%clk 0:00:19.7]}
90. Ke5 {[%clk 0:00:05.6]} 90... Kd3 {[%clk 0:00:20.2]} 91. Kd6 {[%clk
0:00:06.5]} 91... Kc4 {[%clk 0:00:20.6]} 92. Bg1 {[%clk 0:00:04.8]} 92... Kb5
{[%clk 0:00:20.8]} 93. Kc7 {[%clk 0:00:05.2]} 93... Bh1 {[%clk 0:00:20.5]} 94.
Bh2 {[%clk 0:00:06.1]} 94... Bc6 {[%clk 0:00:20.4]} 95. Bg3 {[%clk 0:00:07]}
95... Ka6 {[%clk 0:00:20.8]} 96. Bf4 {[%clk 0:00:07.9]} 96... Kb5 {[%clk
0:00:21.4]} 97. Be3 {[%clk 0:00:08.8]} 97... Kc4 {[%clk 0:00:21.7]} 98. Bf2
{[%clk 0:00:09.7]} 98... Kd3 {[%clk 0:00:22.1]} 99. Bg1 {[%clk 0:00:10.6]} 99...
Ke4 {[%clk 0:00:22.7]} 100. Bh2 {[%clk 0:00:11.2]} 100... Kf5 {[%clk 0:00:23.1]}
101. Bd6 {[%clk 0:00:12.1]} 101... Ke6 {[%clk 0:00:22.9]} 102. Bc5 {[%clk
0:00:13]} 102... Kd5 {[%clk 0:00:23.3]} 103. Bf2 {[%clk 0:00:13.9]} 103... Ke4
{[%clk 0:00:23.8]} 104. Bg3 {[%clk 0:00:14.8]} 104... Kf5 {[%clk 0:00:24.3]}
105. Bh4 {[%clk 0:00:15.7]} 105... Kg4 {[%clk 0:00:24.2]} 106. Bd8 {[%clk
0:00:16.6]} 106... Kf5 {[%clk 0:00:24.8]} 107. Be7 {[%clk 0:00:17.5]} 107... Ke6
{[%clk 0:00:25.4]} 108. Bb4 {[%clk 0:00:18.4]} 108... Kd5 {[%clk 0:00:26]} 109.
Bc3 {[%clk 0:00:19.3]} 109... Ke4 {[%clk 0:00:26.5]} 110. Bd2 {[%clk 0:00:20.1]}
110... Kd3 {[%clk 0:00:27.2]} 111. Bc1 {[%clk 0:00:20.9]} 111... Kc2 {[%clk
0:00:27.6]} 112. Ba3 {[%clk 0:00:21.8]} 112... Kd3 {[%clk 0:00:28.1]} 113. Bd6
{[%clk 0:00:22.7]} 113... Kc4 {[%clk 0:00:28.7]} 114. Be7 {[%clk 0:00:23.6]}
114... Kd5 {[%clk 0:00:29.4]} 115. Bf6 {[%clk 0:00:24.5]} 115... Ke6 {[%clk
0:00:29.8]} 116. Bg5 {[%clk 0:00:25.4]} 116... Kf5 {[%clk 0:00:30.5]} 117. Bh4
{[%clk 0:00:26.3]} 117... Ke4 {[%clk 0:00:31.4]} 118. Bf2 {[%clk 0:00:26.8]}
118... Kf3 {[%clk 0:00:32.3]} 119. Bg1 {[%clk 0:00:27.7]} 119... Ke4 {[%clk
0:00:33.1]} 120. Bh2 {[%clk 0:00:27.9]} 120... Kd3 {[%clk 0:00:34]} 121. Bd6
{[%clk 0:00:28.5]} 121... Ke4 {[%clk 0:00:34.8]} 122. Bc5 {[%clk 0:00:29.4]}
1/2-1/2

[Event "Late-Titled-Tuesday-Blitz-November-28-2023"]
[Site "Chess.com"]
[Date "2023.11.28"]
[Round "4"]
[White "Cristi_Coca"]
[Black "GAO"]
[Result "1-0"]
[WhiteElo "2462"]
[BlackElo "2254"]
[TimeControl "180+1"]
[EndTime "14:32:00 PST"]
[Termination "Cristi_Coca won by resignation"]

1. e4 {[%clk 0:03:00.9]} 1... c5 {[%clk 0:02:57.9]} 2. c3 {[%clk 0:03:01.1]}
2... Nc6 {[%clk 0:02:58.8]} 3. d4 {[%clk 0:02:59.5]} 3... d5 {[%clk 0:02:59.1]}
4. exd5 {[%clk 0:02:59.4]} 4... Qxd5 {[%clk 0:02:58.8]} 5. Nf3 {[%clk
0:03:00.2]} 5... Bf5 {[%clk 0:02:58.2]} 6. dxc5 {[%clk 0:03:00.6]} 6... Qxd1+
{[%clk 0:02:55]} 7. Kxd1 {[%clk 0:03:01.5]} 7... e5 {[%clk 0:02:53.9]} 8. b4
{[%clk 0:03:01.6]} 8... a5 {[%clk 0:02:50.8]} 9. b5 {[%clk 0:02:57.2]} 9... Nd8
{[%clk 0:02:45.6]} 10. c6 {[%clk 0:02:49]} 10... bxc6 {[%clk 0:02:28]} 11. bxc6
{[%clk 0:02:49.9]} 11... Rc8 {[%clk 0:02:27.4]} 12. Bb5 {[%clk 0:02:48.3]} 12...
Bg4 {[%clk 0:02:24]} 13. c7+ {[%clk 0:02:47.3]} 13... Ke7 {[%clk 0:02:22.1]} 14.
cxd8=Q+ {[%clk 0:02:29.4]} 14... Rxd8+ {[%clk 0:02:23]} 15. Ke1 {[%clk
0:02:25.4]} 15... e4 {[%clk 0:02:20.6]} 16. Nd4 {[%clk 0:02:25.2]} 16... Nf6
{[%clk 0:02:17.6]} 17. Ba3+ {[%clk 0:02:24.2]} 1-0